bitfinex/quotes_ETHUSD_20250721
["timestamp","ask_amount","ask_price","bid_price","bid_amount"]
[1753080203715,16.46525901,3792.5,3792.4,0.001]
[1753080204341,12.13868312,3792.5,3792.4,0.001]
[1753080204524,16.26768312,3792.5,3792.4,0.001]
[1753080204721,9.13868312,3792.5,3792.4,0.001]
[1753080205046,13.26768312,3792.5,3792.4,0.001]
[1753080205253,12.76768312,3792.5,3792.4,0.001]
[1753080207355,8.19088312,3792.5,3792.4,0.001]
[1753080207661,12.76668312,3792.5,3792.4,0.001]
[1753080208054,5.5541,3792.5,3792.4,0.001]
[1753080208261,9.3468,3792.5,3792.4,0.001]
[1753080208455,4.77,3792.5,3792.4,0.001]
[1753080208659,8.898,3792.5,3792.4,0.001]
[1753080209157,11.53478312,3792.5,3792.4,0.001]
[1753080209484,11.98258312,3792.5,3792.4,0.001]
[1753080209982,4.77,3792.5,3792.4,0.001]
[1753080210141,8.898,3792.5,3792.4,0.001]
[1753080211163,4.77,3792.5,3792.4,0.001]
[1753080211363,8.897,3792.5,3792.4,0.001]
[1753080212168,21.49199341,3792.5,3792.4,0.001]
[1753080212673,20.94199341,3792.5,3792.4,0.001]
[1753080212865,15.78718312,3792.5,3792.4,0.001]
[1753080213398,11.66018312,3792.5,3792.4,0.001]
[1753080213593,15.78718312,3792.5,3792.4,0.001]
[1753080214648,20.94199341,3792.5,3792.4,1e-08]
[1753080214852,2.63699171,3792.2,3792.1,0.04]
[1753080215096,10.59129171,3792.2,3792.1,0.04]
[1753080215404,11.03909171,3792.2,3792.1,0.04]
[1753080216398,11.58909171,3792.2,3792.1,1e-08]
[1753080216700,11.58809171,3792.2,3792.1,1e-08]
[1753080216895,7.46209171,3792.2,3792.1,1e-08]
[1753080217072,11.58909171,3792.2,3792.1,1e-08]
[1753080218298,2.6376177,3791.3,3791.2,0.001]
[1753080218456,7.40661769,3791.3,3791.2,0.001]
[1753080218795,11.53261769,3791.3,3791.2,0.001]
[1753080219291,7.85441769,3791.3,3791.2,0.001]
[1753080219497,11.98041769,3791.3,3791.2,0.001]
[1753080221695,12.80371769,3791.3,3791.2,0.001]
[1753080224058,15.80371769,3791.3,3791.2,0.001]
[1753080224277,6.4609177,3791.3,3791.2,0.001]
[1753080224476,6.7636177,3791.3,3791.2,0.001]
[1753080225260,6.7626177,3791.3,3791.2,0.001]
[1753080227280,2.6376177,3791.3,3791.2,0.001]
[1753080227468,6.7636177,3791.3,3791.2,0.001]
[1753080227666,6.7626177,3791.3,3791.2,0.001]
[1753080229005,6.328,3791.5,3791.2,0.001]
[1753080229313,6.76255113,3791.4,3791.2,0.001]
[1753080230526,6.328,3791.5,3791.2,0.001]
[1753080230667,4.76899999,3791.4,3791.2,0.001]
[1753080231188,4.125,3791.3,3791.2,0.001]
[1753080233210,4.76899999,3791.4,3791.2,0.001]
[1753080233411,4.124,3791.3,3791.2,0.001]
[1753080233914,8.89299999,3791.3,3791.2,0.001]
[1753080237006,9.35389999,3791.3,3791.2,0.001]
[1753080237437,11.99151769,3791.3,3791.2,0.001]
[1753080237824,11.53061769,3791.3,3791.2,0.001]
[1753080238147,11.99151769,3791.3,3791.2,0.001]
[1753080241606,4.76899999,3791.3,3791.2,0.001]
[1753080242059,8.89099999,3791.3,3791.2,0.46]
[1753080242463,8.89099999,3791.3,3791.2,0.001]
[1753080245596,11.52861769,3791.3,3791.2,0.001]
[1753080246668,11.98951769,3791.3,3791.2,0.001]
[1753080247879,8.89099999,3791.3,3791.2,0.001]
[1753080248999,11.98951769,3791.3,3791.2,0.001]
[1753080249637,9.35189999,3791.3,3791.2,0.001]
[1753080249802,8.89099999,3791.3,3791.2,0.001]
[1753080249993,11.52861769,3791.3,3791.2,0.001]
[1753080251502,8.89099999,3791.3,3791.2,0.001]
[1753080252014,11.52861769,3791.3,3791.2,0.001]
[1753080252390,4.76899999,3791.3,3791.2,0.001]
[1753080252588,8.88899999,3791.3,3791.2,1.2242]
[1753080252811,4.76899999,3791.3,3791.2,0.7956]
[1753080253021,8.88899999,3791.3,3791.2,0.7956]
[1753080253493,4.76899999,3791.3,3791.2,4.34062048]
[1753080253734,8.88799999,3791.3,3791.2,4.34062048]
[1753080253919,0.002,3791.6,3791.5,3.18747857]
[1753080254122,4.121,3791.6,3791.5,5.38397501]
[1753080254340,4.121,3791.6,3791.5,5.81257501]
[1753080254524,0.002,3791.6,3791.5,5.26257501]
[1753080254827,4.121,3791.6,3791.5,2.06529644]
[1753080255032,4.121,3791.6,3791.5,0.7529]
[1753080255723,4.121,3791.6,3791.3,0.1312]
[1753080258235,3.7512,3791.5,3791.2,0.34853321]
[1753080258438,4.118,3791.4,3791.2,0.001]
[1753080260664,3.62,3791.3,3791.2,0.001]
[1753080262766,6.7212177,3791.3,3791.2,0.001]
[1753080265670,6.7212177,3791.3,3790.4,0.001]
[1753080265671,3.4105177,3791.3,3790.4,0.001]
[1753080265865,3.4105177,3791.3,3785.7,14.38939649]
[1753080265866,2.63887056,3789.5,3788.1,0.04]
[1753080266065,11.56748643,3788.2,3788.1,0.04]
[1753080266239,4.8889,3788.2,3788.1,0.04]
[1753080266439,2.63977614,3788.2,3788.1,0.04]
[1753080266639,6.75577614,3788.2,3788.1,0.04]
[1753080266852,7.21937614,3788.2,3788.1,0.04]
[1753080269167,10.21937614,3788.2,3788.1,1e-08]
[1753080269786,10.9703698,3788.2,3788.1,1e-08]
[1753080269970,10.4203698,3788.2,3788.1,1e-08]
[1753080270371,11.1893698,3788.2,3788.1,1e-08]
[1753080271870,7.6233698,3788.2,3788.1,1e-08]
[1753080272081,11.7413698,3788.2,3788.1,1e-08]
[1753080273736,7.6233698,3788.2,3788.1,1e-08]
[1753080273886,11.7423698,3788.2,3788.1,1e-08]
[1753080274536,7.0733698,3788.2,3788.1,1e-08]
[1753080274899,11.1923698,3788.2,3788.1,1e-08]
[1753080276097,14.8123698,3788.2,3788.1,1e-08]
[1753080276926,15.3623698,3788.2,3788.1,1e-08]
[1753080279325,0.7656,3787.3,3786.1,0.04]
[1753080279560,2.64117056,3786.2,3786.1,0.04]
[1753080279698,4.119,3786.2,3786.1,0.04]
[1753080280315,10.21967056,3786.2,3786.1,0.04]
[1753080281848,6.30108178,3786.2,3786.1,0.04]
[1753080282086,10.42008178,3786.2,3786.1,0.04]
[1753080282821,10.97008178,3786.2,3786.1,0.04]
[1753080283216,6.85108178,3786.2,3786.1,1e-08]
[1753080283717,11.79578178,3786.2,3786.1,1e-08]
[1753080283918,5.64131008,3786.0,3785.9,1e-08]
[1753080284227,7.01601008,3786.0,3785.9,1e-08]
[1753080284428,15.13910579,3786.0,3785.9,1e-08]
[1753080284607,19.25910579,3786.0,3785.9,1e-08]
[1753080284806,19.25910579,3786.0,3784.6,4.0]
[1753080284807,2.64221734,3784.7,3784.6,4.0]
[1753080285013,3.19256646,3784.2,3784.1,1e-08]
[1753080285213,6.95316646,3784.2,3784.1,1e-08]
[1753080285414,7.41266646,3784.2,3784.1,1e-08]
[1753080285625,11.53366646,3784.2,3784.1,1e-08]
[1753080286336,7.61561429,3784.2,3784.1,1e-08]
[1753080286519,11.73761429,3784.2,3784.1,1e-08]
[1753080286726,11.73661429,3784.2,3784.1,1e-08]
[1753080287458,7.61561429,3784.2,3784.1,1e-08]
[1753080287656,11.74061429,3784.2,3784.1,1e-08]
[1753080287856,7.61561429,3784.2,3784.1,1e-08]
[1753080288161,11.74261429,3784.2,3784.1,1e-08]
[1753080288353,11.19361429,3784.2,3784.1,1e-08]
[1753080288541,10.66794783,3784.2,3784.1,1e-08]
[1753080288947,12.18351429,3784.2,3784.1,1e-08]
[1753080289259,16.31351429,3784.2,3784.1,1e-08]
[1753080289633,12.18351429,3784.2,3784.1,1e-08]
[1753080290039,16.31151429,3784.2,3784.1,1e-08]
[1753080290237,12.18351429,3784.2,3784.1,1e-08]
[1753080290440,6.338,3784.2,3784.1,0.43680001]
[1753080290648,6.338,3784.2,3784.1,3.8743363]
[1753080290941,5.64192626,3785.2,3784.1,4.52603362]
[1753080291138,6.339,3785.1,3784.3,2.64249663]
[1753080291453,4.128,3785.0,3784.4,3.07918122]
[1753080291757,4.128,3785.0,3784.2,2.64256646]
[1753080291758,4.128,3785.0,3784.5,3.07914975]
[1753080291952,4.372307,3784.9,3784.6,0.4368]
[1753080292151,0.243307,3784.8,3784.7,3.47271734]
[1753080292353,4.372307,3784.8,3784.7,4.04151734]
[1753080292731,0.243307,3784.8,3784.7,4.04151734]
[1753080292966,4.372307,3784.8,3784.7,4.04151734]
[1753080294168,4.371307,3784.8,3784.7,3.90951734]
[1753080294363,0.243307,3784.8,3784.7,3.90951734]
[1753080294572,4.370307,3784.8,3784.7,4.59549211]
[1753080295166,0.243307,3784.8,3784.7,4.59549211]
[1753080295358,4.369307,3784.8,3784.7,4.59549211]
[1753080295531,0.243307,3784.8,3784.7,4.59549211]
[1753080295737,4.367307,3784.8,3784.7,4.59549211]
[1753080296167,4.367307,3784.8,3784.7,1.95327477]
[1753080296344,4.367307,3784.8,3784.7,1.2673]
[1753080297462,0.243307,3784.8,3784.7,3.90951734]
[1753080297661,4.365307,3784.8,3784.7,3.90951734]
[1753080297863,4.365307,3784.8,3784.7,4.04151734]
[1753080298160,4.122,3784.8,3784.7,4.04151734]
[1753080298388,4.122,3784.8,3784.7,4.70990353]
[1753080299370,0.132,3785.5,3785.0,2.64200329]
[1753080299577,0.24515221,3785.4,3785.0,2.64200329]
[1753080299751,4.36715221,3785.3,3785.1,0.4368]
[1753080299955,4.36715221,3785.2,3785.1,3.38661845]
[1753080300263,0.24515221,3785.2,3785.1,3.38661845]
[1753080300438,4.36715221,3785.2,3785.1,3.38661845]
[1753080300644,0.24515221,3785.2,3785.1,3.38661845]
[1753080300950,4.36715221,3785.2,3785.1,0.74468033]
[1753080301149,4.36715221,3785.2,3785.1,0.4368]
[1753080301681,0.132,3785.1,3784.7,1.2673]
[1753080301987,0.24515221,3785.0,3784.9,2.64207772]
[1753080302189,4.36715221,3785.0,3784.9,3.07887772]
[1753080302395,0.132,3785.7,3785.6,2.64158918]
[1753080302692,0.24534276,3785.7,3785.6,2.64158918]
[1753080302901,4.36734276,3785.7,3785.6,4.03708918]
[1753080303052,4.122,3785.7,3785.6,4.03708918]
[1753080303252,6.338,3785.9,3785.8,2.64144962]
[1753080303452,10.70534167,3785.9,3785.8,3.07824962]
[1753080304101,10.70534167,3785.9,3785.8,0.4368]
[1753080304453,10.70534167,3785.9,3785.3,0.4368]
[1753080304681,0.37734167,3785.8,3785.3,0.4368]
[1753080305023,0.132,3785.3,3784.7,1.2635]
[1753080305228,8.44684166,3785.7,3784.7,1.2635]
[1753080305229,10.62921137,3785.2,3784.7,1.2635]
[1753080305391,0.37734167,3785.1,3784.7,1.2635]
[1753080305586,4.36734167,3785.0,3784.7,1.2635]
[1753080305782,1.02364167,3784.9,3783.8,3.46949421]
[1753080305993,0.132,3784.2,3783.8,1.2635]
[1753080306192,4.49934167,3784.2,3783.8,1.2635]
[1753080306478,0.24534167,3784.2,3784.1,0.43780001]
[1753080306678,4.36734167,3784.2,3784.1,0.43780001]
[1753080306916,4.36734167,3784.2,3784.1,0.00100001]
[1753080307280,4.122,3784.2,3784.1,0.00100001]
[1753080307480,0.132,3784.5,3784.1,0.43780001]
[1753080307678,4.122,3784.4,3784.2,0.4368]
[1753080307916,0.132,3784.5,3784.2,0.4368]
[1753080308108,4.122,3784.3,3784.2,0.4368]
[1753080308591,4.122,3784.3,3784.1,2.64358918]
[1753080308916,4.122,3784.3,3784.2,2.64256646]
[1753080309116,4.122,3784.3,3784.2,0.4368]
[1753080309287,4.122,3784.3,3784.2,3.07935695]
[1753080309480,0.132,3784.5,3784.2,0.4368]
[1753080309691,4.122,3784.4,3784.2,0.4368]
[1753080309899,4.122,3784.4,3784.1,0.00100001]
[1753080311129,0.132,3784.2,3784.1,0.00100001]
[1753080311914,3.57056646,3784.2,3784.1,0.00100001]
[1753080312334,4.01786646,3784.2,3784.1,0.00100001]
[1753080312663,0.132,3784.2,3784.1,0.00100001]
[1753080312819,0.8063,3784.8,3784.1,0.46280001]
[1753080313157,0.132,3784.4,3784.3,2.64249663]
[1753080313358,0.132,3784.4,3784.3,3.10429663]
[1753080313531,4.254,3784.4,3784.3,3.10429663]
[1753080313858,4.254,3784.4,3784.1,2.64361555]
[1753080314167,4.254,3784.4,3784.1,0.00100001]
[1753080314168,0.8063,3784.3,3784.1,0.00100001]
[1753080314334,1.2536,3784.3,3784.1,0.00100001]
[1753080314533,0.8063,3784.7,3784.1,0.00100001]
[1753080314734,0.132,3784.2,3784.1,3.10542316]
[1753080315062,4.122,3784.2,3784.1,0.00100001]
[1753080315968,8.01816646,3784.2,3784.1,0.00100001]
[1753080316469,11.01816646,3784.2,3784.1,0.00100001]
[1753080317948,11.01816646,3784.2,3783.1,0.04]
[1753080317949,3.99066496,3783.2,3783.1,1e-08]
[1753080318150,16.90266496,3783.2,3783.1,1e-08]
[1753080318464,17.37096496,3783.2,3783.1,1e-08]
[1753080318971,17.92096496,3783.2,3783.1,1e-08]
[1753080319648,17.92296496,3783.2,3783.1,1e-08]
[1753080320364,2.64326496,3783.2,3783.1,1e-08]
[1753080320563,7.23556496,3783.2,3783.1,1e-08]
[1753080320929,6.78826496,3783.2,3783.1,1e-08]
[1753080321335,10.23556496,3783.2,3783.1,1e-08]
[1753080322859,0.8318,3783.3,3783.1,1e-08]
[1753080323044,6.79426496,3783.2,3783.1,1e-08]
[1753080323443,7.24156496,3783.2,3783.1,1e-08]
[1753080323669,10.79156496,3783.2,3783.1,1e-08]
[1753080323833,5.64326496,3783.2,3783.1,1e-08]
[1753080324037,9.79426496,3783.2,3783.1,1e-08]
[1753080324546,10.24156496,3783.2,3783.1,1e-08]
[1753080324873,10.24156496,3783.2,3783.1,0.00100001]
[1753080326076,9.79426496,3783.2,3783.1,0.00100001]
[1753080326446,10.24156496,3783.2,3783.1,0.00100001]
[1753080327487,10.99326496,3783.2,3783.1,0.00100001]
[1753080327689,6.39496496,3783.2,3783.1,0.00100001]
[1753080327834,10.54696496,3783.2,3783.1,0.00100001]
[1753080328607,10.99426496,3783.2,3783.1,0.00100001]
[1753080328796,5.64326496,3783.2,3783.1,0.00100001]
[1753080328939,9.79526496,3783.2,3783.1,0.00100001]
[1753080329281,10.24256496,3783.2,3783.1,0.00100001]
[1753080330680,5.64326496,3783.2,3783.1,0.00100001]
[1753080330851,10.79156496,3783.2,3783.1,0.00100001]
[1753080331254,10.24156496,3783.2,3783.1,0.00100001]
[1753080331465,0.8204,3784.0,3783.1,0.00100001]
[1753080331649,0.132,3783.2,3783.1,3.10613484]
[1753080331853,4.282,3783.2,3783.1,0.85099349]
[1753080332073,4.282,3783.2,3783.1,3.49432832]
[1753080332451,4.15,3783.2,3782.5,0.001]
[1753080332647,4.153,3783.1,3782.5,0.001]
[1753080332848,4.153,3783.0,3782.5,0.001]
[1753080333061,6.79647572,3782.9,3782.5,0.001]
[1753080333377,4.153,3782.9,3782.5,0.001]
[1753080333551,4.152,3782.8,3782.6,2.64368423]
[1753080333753,4.152,3782.7,3782.6,3.17252516]
[1753080333968,2.64280518,3783.9,3782.6,0.52884093]
[1753080334284,4.152,3783.8,3783.4,2.64310322]
[1753080334442,4.152,3783.7,3783.5,0.4618]
[1753080334945,4.152,3783.7,3783.2,0.4618]
[1753080335140,4.152,3783.7,3783.4,0.4618]
[1753080335485,0.19482603,3784.1,3783.5,0.4618]
[1753080335486,4.151,3783.6,3783.5,0.4618]
[1753080335637,4.151,3783.6,3783.5,1.2287]
[1753080335844,0.002,3784.2,3783.5,1.2287]
[1753080336080,4.149,3784.1,3783.6,2.6429168]
[1753080336315,0.002,3784.2,3783.7,0.4618]
[1753080336496,0.002,3784.2,3784.1,2.64263629]
[1753080336701,0.002,3784.2,3784.1,3.44063629]
[1753080337071,0.002,3784.2,3784.1,3.90243629]
[1753080341601,0.002,3784.2,3784.1,6.90243629]
[1753080341801,0.002,3784.2,3784.1,7.85960022]
[1753080342491,0.002,3784.2,3784.1,7.99160022]
[1753080343920,1e-08,3784.2,3784.1,8.54160022]
[1753080344282,1e-08,3784.2,3784.1,7.99160022]
[1753080345088,1e-08,3784.2,3784.1,16.20519593]
[1753080346923,1e-08,3784.2,3784.1,20.34419593]
[1753080348531,0.002,3785.0,3784.9,0.55]
[1753080348827,0.002,3785.0,3784.9,7.73185572]
[1753080349026,0.002,3785.8,3785.7,3.4079194]
[1753080349192,1e-08,3785.8,3785.7,6.4079194]
[1753080349391,1e-08,3785.8,3785.7,6.8619194]
[1753080349610,1e-08,3785.9,3785.7,7.4119194]
[1753080349824,1e-08,3785.9,3785.8,8.47161646]
[1753080350031,1e-08,3785.9,3785.8,12.58920197]
[1753080351798,1e-08,3785.9,3785.8,12.58720197]
[1753080352537,1e-08,3785.9,3785.8,8.44520197]
[1753080352893,1e-08,3785.9,3785.8,12.58420197]
[1753080355188,1e-08,3785.9,3785.8,8.44520197]
[1753080355606,1e-08,3785.9,3785.8,12.58020197]
[1753080356419,0.04,3786.9,3786.8,6.44265208]
[1753080356628,0.04,3786.9,3786.8,7.35100103]
[1753080357033,0.04,3786.9,3786.8,7.80500103]
[1753080358730,0.04,3786.9,3786.8,7.93700103]
[1753080360619,0.04,3786.9,3786.8,5.77275208]
[1753080361843,0.04,3786.9,3786.8,6.22675208]
[1753080362041,0.04,3786.9,3786.8,6.77675208]
[1753080362416,1e-08,3786.9,3786.8,7.60615208]
[1753080362628,1e-08,3786.9,3786.8,7.05615208]
[1753080362807,1e-08,3786.9,3786.8,9.2050106]
[1753080363007,1e-08,3786.9,3786.8,8.7510106]
[1753080363208,1e-08,3786.9,3786.8,6.60215208]
[1753080363514,1e-08,3786.9,3786.8,5.77275208]
[1753080365214,1e-08,3786.9,3786.8,5.64075208]
[1753080366107,1e-08,3786.9,3786.8,5.77275208]
[1753080366310,1e-08,3786.9,3786.8,6.2531596]
[1753080366648,1e-08,3786.9,3786.8,7.19266178]
[1753080369114,0.00200001,3786.9,3786.8,7.19266178]
[1753080370118,0.00200001,3786.9,3786.8,8.51986178]
[1753080370860,0.00200001,3786.9,3786.8,7.17816178]
[1753080371331,0.00200001,3786.9,3786.8,6.73866178]
[1753080373112,0.00200001,3786.9,3786.8,5.77275208]
[1753080373318,0.00200001,3786.9,3786.8,6.76225208]
[1753080373951,0.00200001,3786.9,3786.8,6.32275208]
[1753080374149,0.00200001,3786.9,3786.8,5.77275208]
[1753080374741,0.00200001,3786.9,3786.8,2.77275208]
[1753080375050,0.47140001,3786.9,3786.8,2.77275208]
[1753080376525,0.8213,3786.8,3786.5,0.132]
[1753080376730,0.4694,3786.7,3786.5,0.132]
[1753080377065,0.4694,3786.7,3786.5,2.77294743]
[1753080377252,0.4694,3786.6,3786.5,0.132]
[1753080377455,0.4694,3786.6,3785.5,0.7976]
[1753080377630,2.6409613,3786.5,3786.2,0.132]
[1753080377982,0.6014,3786.4,3785.8,2.64143982]
[1753080378147,0.132,3786.4,3785.8,2.64143982]
[1753080378330,4.5914,3786.3,3785.7,0.132]
[1753080378665,0.4694,3786.2,3785.8,2.6413969]
[1753080378969,0.6014,3786.2,3785.6,0.132]
[1753080379130,0.6014,3786.2,3785.7,2.64151039]
[1753080379330,0.6014,3786.2,3785.6,0.132]
[1753080379331,0.4694,3786.1,3785.8,2.6414356]
[1753080379624,0.132,3786.2,3785.8,2.64138875]
[1753080380028,0.4694,3786.1,3785.8,2.64138875]
[1753080380229,0.4694,3786.0,3785.7,2.64151445]
[1753080380443,0.4694,3785.9,3785.7,2.64151445]
[1753080381349,0.4694,3785.9,3785.8,2.64144962]
[1753080382960,3.61999999,3786.1,3785.8,2.64144962]
[1753080382961,3.61999999,3786.1,3786.0,2.64131008]
[1753080383175,4.08939999,3786.1,3786.0,2.64131008]
[1753080383490,4.08939999,3786.8,3786.5,2.6409613]
[1753080383641,4.122,3786.6,3786.5,5.6409613]
[1753080383841,4.122,3786.6,3786.5,5.66737091]
[1753080384040,0.00200001,3786.9,3786.8,2.64075208]
[1753080384279,0.00200001,3786.9,3786.8,2.77275208]
[1753080384478,0.00200001,3786.9,3786.8,6.62479805]
[1753080385253,0.00200001,3786.9,3786.8,7.06429805]
[1753080385659,1e-08,3786.9,3786.8,7.06429805]
[1753080385854,1e-08,3786.9,3786.8,7.61429805]
[1753080387463,1e-08,3786.9,3786.8,7.17479805]
[1753080387784,1e-08,3786.9,3786.8,11.73629805]
[1753080388076,1e-08,3786.9,3786.8,7.17479805]
[1753080388455,1e-08,3786.9,3786.8,6.62479805]
[1753080388660,1e-08,3786.9,3786.8,5.77275208]
[1753080388859,1e-08,3786.9,3786.8,6.2386596]
[1753080389186,1e-08,3786.9,3786.8,6.21225208]
[1753080389385,1e-08,3786.9,3786.8,6.76225208]
[1753080389587,1e-08,3786.9,3786.8,10.88425208]
[1753080389789,1e-08,3786.9,3786.8,13.34501673]
[1753080391190,1e-08,3786.9,3786.8,12.35451673]
[1753080391350,1e-08,3786.9,3786.8,12.79401673]
[1753080391850,1e-08,3786.9,3786.8,13.34401673]
[1753080393573,1e-08,3786.9,3786.8,12.90451673]
[1753080394110,1e-08,3786.9,3786.8,12.35451673]
[1753080394254,1e-08,3786.9,3786.8,8.23351673]
[1753080394450,1e-08,3786.9,3786.8,5.77275208]
[1753080394656,1.28040001,3786.9,3786.4,2.64102976]
[1753080394876,0.4694,3786.8,3786.6,2.77284486]
[1753080395088,0.4694,3786.8,3786.7,5.64082182]
[1753080395295,0.81100001,3786.9,3786.7,5.64082182]
[1753080395655,0.81100001,3786.9,3786.5,2.64092738]
[1753080395855,0.4694,3786.8,3786.5,2.64092738]
[1753080396052,0.4694,3786.7,3786.5,2.64092738]
[1753080396280,0.4694,3786.6,3786.5,2.64092738]
[1753080396785,0.4694,3786.6,3786.4,2.77301195]
[1753080396947,0.4694,3786.5,3786.4,0.132]
[1753080397153,0.4694,3786.5,3785.5,0.8238]
[1753080397154,2.64103917,3786.4,3785.9,0.132]
[1753080397499,2.64118298,3786.2,3785.5,2.64264878]
[1753080397663,0.9373,3786.2,3785.6,0.132]
[1753080397985,0.4694,3786.1,3785.8,2.64144962]
[1753080398165,0.9373,3786.2,3785.7,2.64150491]
[1753080398366,0.4694,3786.0,3785.7,2.64150491]
[1753080398585,0.9373,3786.2,3785.7,2.64150491]
[1753080398796,0.4694,3786.1,3785.6,2.77356925]
[1753080399198,0.9373,3786.2,3785.6,2.77356925]
[1753080399394,0.4694,3786.0,3785.7,2.64145838]
[1753080399604,0.4694,3785.9,3785.8,2.64143846]
[1753080400026,0.9373,3786.2,3785.9,2.64137423]
[1753080400203,0.132,3786.2,3786.1,2.64124032]
[1753080400505,0.7979,3786.6,3786.5,2.6409613]
[1753080400709,0.76410001,3786.9,3786.8,2.64075208]
[1753080400874,1e-08,3786.9,3786.8,2.64075208]
[1753080401198,1e-08,3786.9,3786.8,5.64075208]
[1753080401604,1e-08,3786.9,3786.8,6.99828508]
[1753080401900,1e-08,3786.9,3786.8,7.54828508]
[1753080403814,1e-08,3786.9,3786.8,12.47948508]
[1753080404218,1e-08,3786.9,3786.8,12.46948508]
[1753080406277,0.002,3787.7,3787.6,6.45289431]
[1753080406484,0.002,3787.7,3787.6,7.36221201]
[1753080406695,0.002,3787.7,3787.6,7.93041201]
[1753080407378,0.002,3787.7,3787.6,7.49421201]
[1753080407699,0.002,3787.7,3787.6,8.04421201]
[1753080408719,0.002,3787.7,3787.6,8.48041201]
[1753080409080,1e-08,3787.7,3787.6,12.60041201]
[1753080409480,1e-08,3787.9,3787.6,12.60041201]
[1753080409827,1e-08,3787.9,3787.8,13.85365062]
[1753080410003,1e-08,3787.9,3787.8,17.97365062]
[1753080410320,1e-08,3787.9,3787.8,19.32755062]
[1753080416958,1e-08,3788.5,3788.4,3.18963678]
[1753080417098,1e-08,3788.5,3788.4,18.29019617]
[1753080417303,1e-08,3788.5,3788.4,10.75780046]
[1753080417805,1e-08,3788.5,3788.4,11.19400046]
[1753080419031,1e-08,3788.5,3788.4,12.02170046]
[1753080419352,1e-08,3788.7,3788.6,6.18949743]
[1753080419658,1e-08,3788.7,3788.6,12.97117679]
[1753080419838,0.04,3788.9,3788.8,3.1893581]
[1753080419839,1e-08,3788.9,3788.8,3.1893581]
[1753080420041,1e-08,3788.9,3788.8,17.99734739]
[1753080420365,1e-08,3788.9,3788.8,18.10215381]
[1753080420529,1e-08,3788.9,3788.8,18.53835381]
[1753080420852,1e-08,3788.9,3788.8,20.98507687]
[1753080421944,1e-08,3788.9,3788.8,21.80707687]
[1753080422650,1e-08,3788.9,3788.8,17.25287687]
[1753080422862,1e-08,3788.9,3788.8,8.76728116]
[1753080423153,0.45180001,3788.9,3788.8,5.7705581]
[1753080423355,0.45180001,3788.9,3788.8,2.7705581]
[1753080423648,1.25230001,3788.9,3788.8,2.7705581]
[1753080424057,1.25230001,3788.9,3788.8,3.1312]
[1753080424239,1.25230001,3788.9,3788.8,0.1312]
[1753080424621,1.25230001,3788.9,3788.8,5.7705581]
[1753080426628,1.25230001,3788.9,3788.8,0.1312]
[1753080427254,1.25230001,3788.9,3788.8,2.7705581]
[1753080427723,1.25230001,3788.9,3788.8,0.1312]
[1753080429148,1.25230001,3788.9,3788.5,2.77076644]
[1753080429335,0.4518,3788.8,3788.5,2.77076644]
[1753080429718,0.4518,3788.7,3788.6,2.63949743]
[1753080430340,0.80050001,3788.9,3788.8,2.6393581]
[1753080430839,0.80050001,3788.9,3788.8,2.7705581]
[1753080431034,0.80050001,3788.9,3788.8,0.1312]
[1753080431360,1.26040001,3788.9,3788.8,2.7705581]
[1753080432160,0.80050001,3788.9,3788.8,5.7705581]
[1753080432319,1e-08,3788.9,3788.8,6.61156346]
[1753080432760,0.45990001,3788.9,3788.8,5.7705581]
[1753080433456,0.45990001,3788.9,3788.8,2.7705581]
[1753080433878,1e-08,3788.9,3788.8,2.7705581]
[1753080434994,0.45990001,3788.9,3788.8,2.7705581]
[1753080435582,1e-08,3788.9,3788.8,2.7705581]
[1753080437968,0.45990001,3788.9,3788.8,2.7705581]
[1753080439375,1e-08,3788.9,3788.8,2.7705581]
[1753080440250,0.45990001,3788.9,3788.8,2.7705581]
[1753080440939,0.45990001,3788.9,3788.8,0.1312]
[1753080441143,0.45990001,3788.9,3788.8,2.7705581]
[1753080441341,1e-08,3788.9,3788.8,2.7705581]
[1753080441741,0.45990001,3788.9,3788.8,0.1312]
[1753080441982,1.22000001,3788.9,3788.8,0.1312]
[1753080442352,1.22000001,3788.9,3788.6,2.63949145]
[1753080442559,0.4599,3788.8,3788.5,0.1312]
[1753080443062,0.4599,3788.7,3788.5,0.1312]
[1753080443473,0.4599,3788.6,3788.5,0.1312]
[1753080444874,0.4599,3788.6,3788.5,2.77076711]
[1753080448062,0.4599,3788.6,3788.5,0.1312]
[1753080448268,0.4599,3788.6,3788.3,2.63965076]
[1753080448469,0.4599,3788.6,3788.2,0.1312]
[1753080448806,4.116,3788.8,3788.4,2.63963678]
[1753080448807,0.4599,3788.5,3788.4,2.63963678]
[1753080450970,4.5759,3788.8,3788.6,2.63948975]
[1753080451171,0.4599,3788.7,3788.6,2.63948975]
[1753080451395,0.4599,3788.7,3788.5,2.63955666]
[1753080451595,4.116,3788.8,3788.5,2.63955666]
[1753080451893,0.4599,3788.6,3788.5,2.63955666]
[1753080452616,1e-08,3788.9,3788.8,2.6393581]
[1753080452797,1e-08,3788.9,3788.8,2.7705581]
[1753080454791,1e-08,3788.9,3788.8,0.1312]
[1753080455014,0.45990001,3788.9,3788.8,2.6393581]
[1753080455456,0.45990001,3788.9,3788.7,2.63941244]
[1753080455653,0.4599,3788.8,3788.7,2.63941244]
[1753080456059,1e-08,3788.9,3788.8,2.6393581]
[1753080456259,4.57790001,3788.9,3788.6,2.63944474]
[1753080456481,4.57790001,3788.9,3788.7,2.63940794]
[1753080456682,4.57790001,3788.9,3788.8,2.6393581]
[1753080459066,4.57790001,3788.9,3788.7,2.63940565]
[1753080459310,0.4599,3788.8,3788.5,2.77071803]
[1753080459478,4.11800001,3788.9,3788.5,2.77071803]
[1753080459680,0.4599,3788.7,3788.5,2.63952235]
[1753080459907,0.4599,3788.7,3788.4,0.1312]
[1753080460110,4.11800001,3788.9,3788.4,2.77078562]
[1753080460276,4.11800001,3788.9,3788.5,2.63954653]
[1753080460476,4.11800001,3788.9,3788.4,0.1312]
[1753080460814,4.11800001,3788.9,3788.3,2.63964994]